[Event "World Senior chT-65 2019"]
[Site "Rhodes"]
[Date "2019.04.16"]
[Round "1.7"]
[White "Kiefer, Gerhard"]
[Black "Hvenekilde, Jorgen"]
[Result "1-0"]
[ECO "C41"]
[WhiteElo "2279"]
[BlackElo "2046"]
[Annotator "NA"]
[PlyCount "79"]
[EventDate "2019.04.16"]
[EventType "team-tourn"]
[EventCountry "GRE"]
[SourceTitle "playchess.com"]
[Source "ChessBase"]
[SourceQuality "1"]
[WhiteTeam "Germany"]
[BlackTeam "Denmark"]
[WhiteTeamCountry "GER"]
[BlackTeamCountry "DEN"]
[TimeControl "40/5400+30:1800+30"]

1. e4 {[%emt 0:00:00]} e5 {[%emt 0:00:00]} 2. Nf3 {[%emt 0:00:00]} d6 {[%emt 0:00:08]} 3. d4 {[%emt 0:00:00]} exd4 {[%emt 0:00:29]} 4. Nxd4 {[%emt 0:00:02]} g6 {[%emt 0:00:33]} 5. Nc3 {[%emt 0:00:42]} Bg7 {[%emt 0:00:12]} 6. Be2 {[%emt 0:06:31]} a6 {[%emt 0:03:22]} 7. a4 {[%emt 0:01:40]} Nf6 {[%emt 0:01:41]} 8. Bg5 {[%emt 0:06:19]} O-O {[%emt 0:05:25]} 9. O-O {[%emt 0:13:50]} Re8 {[%emt 0:07:57]} 10. f3 {[%emt 0:13:08]} c5 {[%emt 0:07:07]} 11. Nb3 {[%emt 0:00:35]} Nc6 {[%emt 0:07:49]} 12. Qd2 {[%emt 0:01:19]} Be6 {[%emt 0:00:42]} 13. Rfd1 {[%emt 0:10:00]} Bxb3 {[%emt 0:01:34]} 14. cxb3 {[%emt 0:00:05]} Nd4 {[%emt 0:00:51]} 15. Bc4 {[%emt 0:00:18]} Qd7 {[%emt 0:22:19]} 16. a5 {[%emt 0:03:28]} Rab8 {[%emt 0:17:24]} 17. Na4 {[%emt 0:00:48]} Qe7 {[%emt 0:04:50]} 18. Nb6 {[%emt 0:01:41]} Qf8 {[%emt 0:00:47]} 19. Bxf6 {[%emt 0:07:53]} Bxf6 {[%emt 0:00:07]} 20. Nd7 {[%emt 0:00:04]} Qe7 {[%emt 0:00:47]} 21. Nxb8 {[%emt 0:00:06]} Rxb8 {[%emt 0:00:04]} 22. Bd5 {[%emt 0:00:15]} Rd8 {[%emt 0:01:29]} 23. Rf1 {[%emt 0:02:46]} Qd7 {[%emt 0:02:49]} 24. Qd3 {[%emt 0:04:15]} Nc6 {[%emt 0:01:10]} 25. Qd2 {[%emt 0:01:55]} Nb4 {[%emt 0:01:36]} 26. Bc4 {[%emt 0:01:10]} Nc6 {[%emt 0:00:43]} 27. Kh1 {[%emt 0:01:41]} Bd4 {[%emt 0:00:37]} 28. f4 {[%emt 0:02:03]} Re8 {[%emt 0:00:56]} 29. f5 {[%emt 0:00:44]} Ne5 {[%emt 0:00:33]} 30. Bd5 {[%emt 0:01:38]} Rb8 {[%emt 0:03:29]} 31. h3 {[%emt 0:01:41]} Qd8 {[%emt 0:00:20]} 32. b4 {[%emt 0:03:58]} Qe7 {[%emt 0:02:14]} 33. bxc5 {[%emt 0:00:19]} dxc5 {[%emt 0:00:14]} 34. Rab1 {[%emt 0:00:23]} Rd8 {[%emt 0:00:12]} 35. b4 {[%emt 0:01:03]} Rd7 {[%emt 0:02:10]} 36. f6 {[%emt 0:03:48]} Qd8 {[%emt 0:00:38]} 37. Qh6 {[%emt 0:03:39]} Qf8 {[%emt 0:00:08]} 38. Qxf8+ {[%emt 0:00:08]} Kxf8 {[%emt 0:00:08]} 39. bxc5 {[%emt 0:00:04]} Bxc5 {[%emt 0:00:45]} 40. Rfc1 {[%emt 0:00:00]} 1-0

[Event "World Senior chT-65 2019"]
[Site "Rhodes"]
[Date "2019.04.16"]
[Round "1.8"]
[White "Grevlund, Per"]
[Black "Buchal, Stephan"]
[Result "1-0"]
[ECO "B07"]
[WhiteElo "1998"]
[BlackElo "2283"]
[Annotator "NA"]
[PlyCount "121"]
[EventDate "2019.04.16"]
[EventType "team-tourn"]
[EventCountry "GRE"]
[SourceTitle "playchess.com"]
[Source "ChessBase"]
[SourceQuality "1"]
[WhiteTeam "Denmark"]
[BlackTeam "Germany"]
[WhiteTeamCountry "DEN"]
[BlackTeamCountry "GER"]
[TimeControl "40/5400+30:1800+30"]

1. e4 {[%emt 0:00:00]} g6 {[%emt 0:00:00]} 2. d4 {[%emt 0:00:00]} Bg7 {[%emt 0:00:00]} 3. Nf3 {[%emt 0:00:21]} d6 {[%emt 0:00:00]} 4. Bd3 {[%emt 0:00:39]} Nf6 {[%emt 0:00:26]} 5. O-O {[%emt 0:00:29]} O-O {[%emt 0:00:11]} 6. c3 {[%emt 0:01:11]} Nc6 {[%emt 0:01:35]} 7. Re1 {[%emt 0:02:56]} e5 {[%emt 0:00:24]} 8. d5 {[%emt 0:01:38]} Ne7 {[%emt 0:00:54]} 9. Nbd2 {[%emt 0:01:52]} h6 {[%emt 0:10:32]} 10. Nf1 {[%emt 0:02:37]} Nh5 {[%emt 0:03:53]} 11. Bc2 {[%emt 0:05:40]} Qe8 {[%emt 0:07:46]} 12. Ba4 {[%emt 0:04:16]} b5 {[%emt 0:03:41]} 13. Bc2 {[%emt 0:00:49]} f5 {[%emt 0:01:35]} 14. exf5 {[%emt 0:03:17]} gxf5 {[%emt 0:01:32]} 15. a4 {[%emt 0:02:36]} Bb7 {[%emt 0:08:04]} 16. axb5 {[%emt 0:02:49]} Bxd5 {[%emt 0:03:18]} 17. Bb3 {[%emt 0:07:38]} Qf7 {[%emt 0:11:46]} 18. Bxd5 {[%emt 0:03:55]} Nxd5 {[%emt 0:00:20]} 19. Ne3 {[%emt 0:01:16]} Nb6 {[%emt 0:17:18]} 20. Nc2 {[%emt 0:09:35]} Nf6 {[%emt 0:03:24]} 21. Nb4 {[%emt 0:02:11]} Qd7 {[%emt 0:07:22]} 22. Qe2 {[%emt 0:06:30]} Kh7 {[%emt 0:01:46]} 23. Ra6 {[%emt 0:02:35]} Ne4 {[%emt 0:07:06]} 24. Nc6 {[%emt 0:01:18]} Nc5 {[%emt 0:00:31]} 25. Rxa7 {[%emt 0:00:51]} Rxa7 {[%emt 0:00:14]} 26. Nxa7 {[%emt 0:00:03]} e4 {[%emt 0:00:22]} 27. Nd4 {[%emt 0:02:09]} Nd3 {[%emt 0:00:34]} 28. Rd1 {[%emt 0:03:00]} c5 {[%emt 0:01:59]} 29. bxc6 {[%emt 0:05:05]} Qxa7 {[%emt 0:00:13]} 30. Be3 {[%emt 0:03:21]} Bxd4 {[%emt 0:03:21]} 31. Bxd4 {[%emt 0:00:47]} Qc7 {[%emt 0:01:38]} 32. Ra1 {[%emt 0:02:44]} Rf7 {[%emt 0:01:15]} 33. Ra6 {[%emt 0:02:14]} Nc8 {[%emt 0:01:34]} 34. b4 {[%emt 0:01:27]} d5 {[%emt 0:00:26]} 35. b5 {[%emt 0:02:14]} Nd6 {[%emt 0:01:08]} 36. b6 {[%emt 0:06:10]} Qxc6 {[%emt 0:00:17]} 37. b7 {[%emt 0:00:02]} Qxb7 {[%emt 0:01:30]} 38. Rxd6 {[%emt 0:00:05]} Nf4 {[%emt 0:00:26]} 39. Qa2 {[%emt 0:01:56]} Qb5 {[%emt 0:00:28]} 40. h3 {[%emt 0:00:00]} Rd7 {[%emt 0:00:00]} 41. Qa6 {[%emt 0:20:21]} Ne2+ {[%emt 0:06:33]} 42. Kh2 {[%emt 0:06:19]} Qxa6 {[%emt 0:06:07]} 43. Rxa6 {[%emt 0:00:10]} f4 {[%emt 0:02:15]} 44. g3 {[%emt 0:05:10]} f3 {[%emt 0:06:19]} 45. Rc6 {[%emt 0:01:36]} Rb7 {[%emt 0:02:51]} 46. g4 {[%emt 0:03:36]} Rb2 {[%emt 0:04:12]} 47. Be3 {[%emt 0:01:47]} Rc2 {[%emt 0:00:50]} 48. Rxh6+ {[%emt 0:01:20]} Kg7 {[%emt 0:00:06]} 49. Rd6 {[%emt 0:01:36]} Rxc3 {[%emt 0:04:53]} 50. Rxd5 {[%emt 0:00:09]} Rd3 {[%emt 0:00:40]} 51. Rxd3 {[%emt 0:02:56]} exd3 {[%emt 0:00:03]} 52. h4 {[%emt 0:00:33]} Kf7 {[%emt 0:00:55]} 53. h5 {[%emt 0:00:13]} Nc3 {[%emt 0:01:20]} 54. Kg3 {[%emt 0:00:07]} d2 {[%emt 0:00:15]} 55. Bxd2 {[%emt 0:00:06]} Ne4+ {[%emt 0:00:03]} 56. Kxf3 {[%emt 0:00:15]} Nxd2+ {[%emt 0:00:01]} 57. Kf4 {[%emt 0:00:23]} Nb3 {[%emt 0:00:29]} 58. g5 {[%emt 0:00:43]} Nc5 {[%emt 0:01:12]} 59. Kf5 {[%emt 0:00:22]} Ne6 {[%emt 0:01:02]} 60. g6+ {[%emt 0:01:12]} Ke7 {[%emt 0:00:02]} 61. h6 {[%emt 0:00:45]} 1-0

[Event "World Senior chT-65 2019"]
[Site "Rhodes"]
[Date "2019.04.16"]
[Round "1.11"]
[White "Melkeraen, Terje"]
[Black "Giffard, Nicolas"]
[Result "1/2-1/2"]
[ECO "E32"]
[WhiteElo "2006"]
[BlackElo "2252"]
[Annotator "NA"]
[PlyCount "86"]
[EventDate "2019.04.16"]
[EventType "team-tourn"]
[EventCountry "GRE"]
[SourceTitle "playchess.com"]
[Source "ChessBase"]
[SourceQuality "1"]
[WhiteTeam "Norway"]
[BlackTeam "France"]
[WhiteTeamCountry "NOR"]
[BlackTeamCountry "FRA"]
[TimeControl "40/5400+30:1800+30"]

1. d4 {[%emt 0:00:11]} Nf6 {[%emt 0:00:00]} 2. c4 {[%emt 0:00:03]} e6 {[%emt 0:00:14]} 3. Nc3 {[%emt 0:00:29]} Bb4 {[%emt 0:00:24]} 4. Qc2 {[%emt 0:00:41]} d6 {[%emt 0:01:22]} 5. Bg5 {[%emt 0:00:00]} h6 {[%emt 0:01:52]} 6. Bh4 {[%emt 0:00:00]} Nbd7 {[%emt 0:03:12]} 7. Nf3 {[%emt 0:01:28]} O-O {[%emt 0:01:11]} 8. a3 {[%emt 0:00:13]} Bxc3+ {[%emt 0:00:14]} 9. Qxc3 {[%emt 0:01:42]} Qe8 {[%emt 0:01:52]} 10. e3 {[%emt 0:04:04]} Ne4 {[%emt 0:01:03]} 11. Qc2 {[%emt 0:00:45]} f5 {[%emt 0:01:09]} 12. Bd3 {[%emt 0:00:48]} g5 {[%emt 0:06:05]} 13. Bg3 {[%emt 0:03:43]} Ndf6 {[%emt 0:06:38]} 14. Nd2 {[%emt 0:11:30]} Nxd2 {[%emt 0:09:25]} 15. Qxd2 {[%emt 0:00:41]} e5 {[%emt 0:02:07]} 16. dxe5 {[%emt 0:00:20]} dxe5 {[%emt 0:00:47]} 17. f3 {[%emt 0:11:57]} f4 {[%emt 0:12:08]} 18. Bf2 {[%emt 0:05:32]} e4 {[%emt 0:06:03]} 19. Bxe4 {[%emt 0:00:00]} Nxe4 {[%emt 0:02:26]} 20. fxe4 {[%emt 0:00:00]} Be6 {[%emt 0:15:54]} 21. O-O {[%emt 0:04:41]} Bxc4 {[%emt 0:00:00]} 22. Rfe1 {[%emt 0:01:38]} f3 {[%emt 0:00:00]} 23. Rac1 {[%emt 0:03:06]} Qf7 {[%emt 0:07:32]} 24. gxf3 {[%emt 0:04:40]} b5 {[%emt 0:00:43]} 25. f4 {[%emt 0:04:16]} Rad8 {[%emt 0:00:55]} 26. Qc2 {[%emt 0:04:35]} Rd7 {[%emt 0:00:00]} 27. Bg3 {[%emt 0:01:19]} Rfd8 {[%emt 0:06:21]} 28. Red1 {[%emt 0:05:09]} Rd3 {[%emt 0:00:00]} 29. Rxd3 {[%emt 0:01:15]} Rxd3 {[%emt 0:04:07]} 30. Rd1 {[%emt 0:02:36]} Rxe3 {[%emt 0:00:00]} 31. Rd8+ {[%emt 0:04:11]} Kg7 {[%emt 0:00:00]} 32. Qd2 {[%emt 0:01:53]} Rxe4 {[%emt 0:07:39]} 33. Rd7 {[%emt 0:08:00]} Re7 {[%emt 0:01:52]} 34. Rxe7 {[%emt 0:01:43]} Qxe7 {[%emt 0:00:00]} 35. fxg5 {[%emt 0:03:51]} hxg5 {[%emt 0:00:00]} 36. b3 {[%emt 0:01:00]} Bf7 {[%emt 0:00:00]} 37. Qd4+ {[%emt 0:00:47]} Kh6 {[%emt 0:06:38]} 38. b4 {[%emt 0:04:09]} c6 {[%emt 0:01:29]} 39. Qe5 {[%emt 0:03:09]} Qxe5 {[%emt 0:00:00]} 40. Bxe5 {[%emt 0:00:00]} Kg6 {[%emt 0:00:00]} 41. Kf2 {[%emt 0:00:00]} Kf5 {[%emt 0:00:00]} 42. Bb8 {[%emt 0:00:00]} a6 {[%emt 0:00:00]} 43. Ke3 {[%emt 0:00:00]} g4 {[%emt 0:00:51] Ke4+ [%emt 00:00:23] Ke5+ [%emt 00:00:59]} 1/2-1/2

[Event "World Senior chT-65 2019"]
[Site "Rhodes"]
[Date "2019.04.16"]
[Round "1.12"]
[White "Boudre, Jean-Pierre"]
[Black "Johnsen, Oystein"]
[Result "1/2-1/2"]
[ECO "B43"]
[WhiteElo "2246"]
[BlackElo "1986"]
[Annotator "NA"]
[PlyCount "102"]
[EventDate "2019.04.16"]
[EventType "team-tourn"]
[EventCountry "GRE"]
[SourceTitle "playchess.com"]
[Source "ChessBase"]
[SourceQuality "1"]
[WhiteTeam "France"]
[BlackTeam "Norway"]
[WhiteTeamCountry "FRA"]
[BlackTeamCountry "NOR"]
[TimeControl "40/5400+30:1800+30"]

1. e4 {[%emt 0:00:00]} c5 {[%emt 0:00:00]} 2. Nf3 {[%emt 0:00:00]} e6 {[%emt 0:00:00]} 3. d4 {[%emt 0:00:00]} cxd4 {[%emt 0:00:00]} 4. Nxd4 {[%emt 0:00:00]} a6 {[%emt 0:00:00]} 5. Nc3 {[%emt 0:00:00]} Qc7 {[%emt 0:00:00]} 6. Qd3 {[%emt 0:01:17]} Nf6 {[%emt 0:04:22]} 7. Qg3 {[%emt 0:03:30]} Qxg3 {[%emt 0:00:56]} 8. hxg3 {[%emt 0:00:05]} Bb4 {[%emt 0:00:21]} 9. f3 {[%emt 0:01:33]} Nc6 {[%emt 0:02:30]} 10. Nxc6 {[%emt 0:05:13]} bxc6 {[%emt 0:01:50]} 11. Bd2 {[%emt 0:08:27]} d5 {[%emt 0:03:51]} 12. Bd3 {[%emt 0:08:21]} Bb7 {[%emt 0:06:14]} 13. O-O-O {[%emt 0:11:54]} O-O-O {[%emt 0:11:02]} 14. exd5 {[%emt 0:01:02]} cxd5 {[%emt 0:03:57]} 15. g4 {[%emt 0:15:49]} d4 {[%emt 0:07:05]} 16. Ne2 {[%emt 0:04:32]} Bxd2+ {[%emt 0:03:46]} 17. Rxd2 {[%emt 0:00:11]} e5 {[%emt 0:01:53]} 18. Ng3 {[%emt 0:00:12]} g6 {[%emt 0:00:57]} 19. Re2 {[%emt 0:01:58]} Nd7 {[%emt 0:06:42]} 20. b4 {[%emt 0:05:56]} f6 {[%emt 0:02:47]} 21. Kd2 {[%emt 0:00:16]} Kc7 {[%emt 0:04:11]} 22. Rh6 {[%emt 0:06:14]} a5 {[%emt 0:02:20]} 23. a3 {[%emt 0:01:38]} axb4 {[%emt 0:00:37]} 24. axb4 {[%emt 0:00:06]} Ra8 {[%emt 0:01:38]} 25. Re1 {[%emt 0:00:23]} Bd5 {[%emt 0:01:35]} 26. Reh1 {[%emt 0:08:13]} Nf8 {[%emt 0:02:51]} 27. Ne4 {[%emt 0:05:35]} Bxe4 {[%emt 0:02:03]} 28. Bxe4 {[%emt 0:00:03]} Rb8 {[%emt 0:00:11]} 29. c3 {[%emt 0:00:09]} dxc3+ {[%emt 0:00:35]} 30. Kxc3 {[%emt 0:00:04]} Kb6 {[%emt 0:00:50]} 31. Rd1 {[%emt 0:00:10]} Kc7 {[%emt 0:01:33]} 32. g3 {[%emt 0:07:24]} Ne6 {[%emt 0:00:13]} 33. Rdh1 {[%emt 0:00:25]} Nf8 {[%emt 0:00:12]} 34. Ra1 {[%emt 0:04:47]} Ne6 {[%emt 0:04:31]} 35. Rxh7+ {[%emt 0:00:00]} Rxh7 36. Ra7+ {[%emt 0:00:14]} Kd6 {[%emt 0:00:04]} 37. Rxh7 {[%emt 0:08:44]} Rc8+ {[%emt 0:01:24]} 38. Kb3 {[%emt 0:02:41]} Nd4+ {[%emt 0:00:14]} 39. Kb2 {[%emt 0:06:18]} f5 {[%emt 0:01:54]} 40. gxf5 {[%emt 0:00:00]} gxf5 {[%emt 0:00:00]} 41. Rh6+ {[%emt 0:00:00]} Ke7 {[%emt 0:18:49]} 42. Bd3 {[%emt 0:00:00]} Rg8 {[%emt 0:02:49]} 43. g4 {[%emt 0:00:00]} e4 {[%emt 0:04:35]} 44. Bxe4 {[%emt 0:02:45]} fxe4 {[%emt 0:00:40]} 45. fxe4 {[%emt 0:00:03]} Rxg4 {[%emt 0:00:23]} 46. e5 {[%emt 0:00:12]} Nf3 {[%emt 0:02:24]} 47. Kb3 {[%emt 0:02:35]} Nxe5 {[%emt 0:00:27]} 48. Rh3 {[%emt 0:00:09]} Nc6 {[%emt 0:00:40]} 49. b5 {[%emt 0:01:11]} Rb4+ {[%emt 0:00:21]} 50. Kc3 {[%emt 0:00:03]} Rxb5 {[%emt 0:00:28]} 51. Rh7+ {[%emt 0:00:05]} Kf8 {[%emt 0:00:47]} 1/2-1/2

[Event "World Senior chT-65 2019"]
[Site "Rhodes"]
[Date "2019.04.16"]
[Round "1.16"]
[White "Svensson, Soren"]
[Black "Lederman, Leon"]
[Result "1-0"]
[ECO "D48"]
[WhiteElo "1964"]
[BlackElo "2281"]
[Annotator "NA"]
[PlyCount "81"]
[EventDate "2019.04.16"]
[EventType "team-tourn"]
[EventCountry "GRE"]
[SourceTitle "playchess.com"]
[Source "ChessBase"]
[SourceQuality "1"]
[WhiteTeam "Sweden"]
[BlackTeam "Israel"]
[WhiteTeamCountry "SWE"]
[BlackTeamCountry "ISR"]
[TimeControl "40/5400+30:1800+30"]

1. d4 {[%emt 0:00:00]} d5 {[%emt 0:00:00]} 2. c4 {[%emt 0:00:00]} e6 {[%emt 0:00:00]} 3. Nf3 {[%emt 0:00:02]} Nf6 {[%emt 0:00:00]} 4. Nc3 {[%emt 0:00:27]} c6 {[%emt 0:00:00]} 5. e3 {[%emt 0:00:17]} Nbd7 {[%emt 0:00:04]} 6. Bd3 {[%emt 0:00:21]} dxc4 {[%emt 0:00:08]} 7. Bxc4 {[%emt 0:00:11]} b5 {[%emt 0:00:01]} 8. Bd3 {[%emt 0:00:17]} a6 {[%emt 0:00:04]} 9. e4 {[%emt 0:00:53]} c5 {[%emt 0:00:09]} 10. d5 {[%emt 0:01:00]} c4 {[%emt 0:00:15]} 11. Bc2 {[%emt 0:00:09]} e5 {[%emt 0:00:17]} 12. Be3 {[%emt 0:04:09]} Bd6 {[%emt 0:00:56]} 13. O-O {[%emt 0:04:44]} O-O {[%emt 0:00:05]} 14. Qe2 {[%emt 0:02:59]} Qe7 {[%emt 0:04:52]} 15. Rad1 {[%emt 0:06:35]} Nc5 {[%emt 0:04:12]} 16. Nd2 {[%emt 0:05:19]} Bd7 {[%emt 0:00:52]} 17. Rb1 {[%emt 0:24:15]} Rfc8 {[%emt 0:01:14]} 18. Rfc1 {[%emt 0:00:47]} b4 {[%emt 0:16:13]} 19. Bxc5 {[%emt 0:14:08]} Bxc5 {[%emt 0:00:48]} 20. Nd1 {[%emt 0:01:17]} Bb5 {[%emt 0:00:27]} 21. Qf3 {[%emt 0:00:57]} Bd4 {[%emt 0:04:34]} 22. Ne3 {[%emt 0:01:25]} g6 {[%emt 0:02:15]} 23. b3 {[%emt 0:07:42]} Bxe3 {[%emt 0:11:33]} 24. Qxe3 {[%emt 0:00:39]} c3 {[%emt 0:00:06]} 25. Nf3 {[%emt 0:01:48]} a5 {[%emt 0:00:50]} 26. Qg5 {[%emt 0:03:15]} Re8 {[%emt 0:00:22]} 27. Re1 {[%emt 0:01:01]} Nd7 {[%emt 0:06:40]} 28. Qh6 {[%emt 0:02:26]} Qf8 {[%emt 0:06:02]} 29. Qg5 {[%emt 0:01:19]} f6 {[%emt 0:00:20]} 30. Qg3 {[%emt 0:02:44]} Qh6 {[%emt 0:01:34]} 31. Rbd1 {[%emt 0:01:08]} Ra6 {[%emt 0:05:43]} 32. Re3 {[%emt 0:01:34]} Qf4 {[%emt 0:07:01]} 33. Qh3 {[%emt 0:00:40]} Nc5 {[%emt 0:00:15]} 34. g3 {[%emt 0:00:59]} Bd7 {[%emt 0:00:36]} 35. Qxd7 {[%emt 0:02:39]} Nxd7 {[%emt 0:00:29]} 36. gxf4 {[%emt 0:00:07]} exf4 {[%emt 0:00:02]} 37. Ree1 {[%emt 0:01:25]} g5 {[%emt 0:00:33]} 38. h3 {[%emt 0:02:34]} Kg7 {[%emt 0:03:39]} 39. Kg2 {[%emt 0:02:52]} h5 {[%emt 0:00:21]} 40. Nd4 {[%emt 0:00:00]} Ne5 {[%emt 0:00:00]} 41. Ne6+ {[%emt 0:02:33]} 1-0

[Event "World Senior chT-65 2019"]
[Site "Rhodes"]
[Date "2019.04.16"]
[Round "1.19"]
[White "Waterfield, John W"]
[Black "Hammar, Bengt"]
[Result "0-1"]
[ECO "B84"]
[WhiteElo "1928"]
[BlackElo "2206"]
[Annotator "NA"]
[PlyCount "108"]
[EventDate "2019.04.16"]
[EventType "team-tourn"]
[EventCountry "GRE"]
[SourceTitle "playchess.com"]
[Source "ChessBase"]
[SourceQuality "1"]
[WhiteTeam "Wales"]
[BlackTeam "Sweden"]
[WhiteTeamCountry "WLS"]
[BlackTeamCountry "SWE"]
[TimeControl "40/5400+30:1800+30"]

1. e4 {[%emt 0:00:00]} c5 {[%emt 0:00:16]} 2. Nf3 {[%emt 0:00:00]} d6 {[%emt 0:00:18]} 3. d4 {[%emt 0:00:00]} cxd4 {[%emt 0:00:11]} 4. Nxd4 {[%emt 0:00:00]} Nf6 {[%emt 0:00:26]} 5. Nc3 {[%emt 0:00:00]} a6 {[%emt 0:00:32]} 6. Be2 {[%emt 0:00:10]} e6 {[%emt 0:01:11]} 7. Be3 {[%emt 0:01:09]} Nbd7 {[%emt 0:02:16]} 8. f4 {[%emt 0:09:40]} b5 {[%emt 0:01:48]} 9. Bf3 {[%emt 0:08:24]} Bb7 {[%emt 0:00:50]} 10. e5 {[%emt 0:03:04]} Bxf3 {[%emt 0:00:27]} 11. Qxf3 {[%emt 0:04:11]} dxe5 {[%emt 0:00:38]} 12. Nc6 {[%emt 0:00:16]} Qc7 {[%emt 0:01:15]} 13. fxe5 {[%emt 0:03:01]} Rc8 {[%emt 0:01:56]} 14. exf6 {[%emt 0:02:12]} Qxc6 {[%emt 0:00:09]} 15. fxg7 {[%emt 0:08:11]} Bxg7 {[%emt 0:00:22]} 16. Qxc6 {[%emt 0:02:41]} Rxc6 {[%emt 0:00:16]} 17. O-O-O {[%emt 0:00:13]} Bxc3 {[%emt 0:08:06]} 18. bxc3 {[%emt 0:00:05]} Rg8 {[%emt 0:00:10]} 19. g3 {[%emt 0:07:24]} Nf6 {[%emt 0:01:38]} 20. Bd4 {[%emt 0:03:30]} Nd5 {[%emt 0:00:30]} 21. Kb2 {[%emt 0:03:40]} Rg5 {[%emt 0:07:21]} 22. Rhe1 {[%emt 0:06:09]} Kf8 {[%emt 0:08:36]} 23. Rd3 {[%emt 0:08:24]} f6 {[%emt 0:04:52]} 24. Re4 {[%emt 0:01:47]} Kf7 {[%emt 0:00:50]} 25. Rh4 {[%emt 0:03:13]} h5 {[%emt 0:04:13]} 26. Re4 {[%emt 0:01:32]} Rg4 {[%emt 0:03:29]} 27. Re2 {[%emt 0:01:13]} Rc4 {[%emt 0:03:12]} 28. Kb3 {[%emt 0:01:29]} a5 {[%emt 0:01:11]} 29. a3 {[%emt 0:00:04]} a4+ {[%emt 0:02:37]} 30. Kb2 {[%emt 0:00:09]} Rc8 {[%emt 0:02:21]} 31. Rf3 {[%emt 0:04:37]} h4 {[%emt 0:02:55]} 32. Ref2 {[%emt 0:02:37]} hxg3 {[%emt 0:00:27]} 33. hxg3 {[%emt 0:00:05]} Rg6 {[%emt 0:00:36]} 34. Rd2 {[%emt 0:03:43]} Rcg8 {[%emt 0:03:14]} 35. Bf2 {[%emt 0:00:52]} Rh8 {[%emt 0:01:28]} 36. Bc5 {[%emt 0:02:22]} Rh3 {[%emt 0:01:05]} 37. Bd6 {[%emt 0:00:44]} Nb6 {[%emt 0:00:48]} 38. Kc1 {[%emt 0:01:57]} Nc4 {[%emt 0:01:08]} 39. Rd1 {[%emt 0:00:04]} e5 {[%emt 0:00:25]} 40. Rfd3 {[%emt 0:00:00]} Rgxg3 {[%emt 0:00:00]} 41. Bc7 {[%emt 0:12:04]} Rxd3 {[%emt 0:02:03]} 42. cxd3 {[%emt 0:00:05]} Ne3 {[%emt 0:00:17]} 43. Rd2 {[%emt 0:03:26]} Ke6 {[%emt 0:02:00]} 44. Bb8 {[%emt 0:04:11]} Rh1+ {[%emt 0:04:48]} 45. Kb2 {[%emt 0:00:12]} Rh7 {[%emt 0:05:49]} 46. Re2 {[%emt 0:01:02]} Nd5 {[%emt 0:07:15]} 47. d4 {[%emt 0:01:48]} Nf4 {[%emt 0:00:36]} 48. Re3 {[%emt 0:01:43]} Rb7 {[%emt 0:01:53]} 49. Bxe5 {[%emt 0:01:05]} fxe5 {[%emt 0:00:06]} 50. Rxe5+ {[%emt 0:00:03]} Kd6 {[%emt 0:00:20]} 51. Rf5 {[%emt 0:01:11]} Nd5 {[%emt 0:00:29]} 52. Rh5 {[%emt 0:01:34]} Re7 {[%emt 0:00:36]} 53. Rh6+ {[%emt 0:01:19]} Re6 {[%emt 0:00:25]} 54. Rh8 {[%emt 0:00:05]} Re2+ {[%emt 0:00:08] Rh1 [%clk 00:17:03] [%emt 00:01:15]} 0-1

[Event "World Senior chT-65 2019"]
[Site "Rhodes"]
[Date "2019.04.16"]
[Round "1.20"]
[White "Hedin, Gunnar"]
[Black "Bevan, Peter M"]
[Result "0-1"]
[ECO "A03"]
[WhiteElo "2195"]
[BlackElo "1920"]
[Annotator "NA"]
[PlyCount "94"]
[EventDate "2019.04.16"]
[EventType "team-tourn"]
[EventCountry "GRE"]
[SourceTitle "playchess.com"]
[Source "ChessBase"]
[SourceQuality "1"]
[WhiteTeam "Sweden"]
[BlackTeam "Wales"]
[WhiteTeamCountry "SWE"]
[BlackTeamCountry "WLS"]
[TimeControl "40/5400+30:1800+30"]

1. f4 {[%emt 0:00:16]} d5 {[%emt 0:00:33]} 2. Nf3 {[%emt 0:00:08]} Nf6 {[%emt 0:00:16]} 3. g3 {[%emt 0:00:11]} g6 {[%emt 0:00:39]} 4. Bg2 {[%emt 0:00:11]} c5 {[%emt 0:00:34]} 5. O-O {[%emt 0:00:35]} Nc6 {[%emt 0:00:26]} 6. d3 {[%emt 0:00:12]} Bg7 {[%emt 0:00:11]} 7. c3 {[%emt 0:00:09]} O-O {[%emt 0:00:27]} 8. Na3 {[%emt 0:00:08]} b6 {[%emt 0:01:11]} 9. Qa4 {[%emt 0:04:56]} Bd7 {[%emt 0:02:01]} 10. Qc2 {[%emt 0:00:29]} Rc8 {[%emt 0:01:24]} 11. e4 {[%emt 0:01:17]} c4 {[%emt 0:03:17]} 12. dxc4 {[%emt 0:04:21]} dxe4 {[%emt 0:03:25]} 13. Ng5 {[%emt 0:00:37]} Na5 {[%emt 0:02:00]} 14. b3 {[%emt 0:16:42]} Bf5 {[%emt 0:05:26]} 15. Rd1 {[%emt 0:06:27]} Qc7 {[%emt 0:01:12]} 16. Nb5 {[%emt 0:00:28]} Qb7 {[%emt 0:02:46]} 17. Re1 {[%emt 0:06:35]} a6 {[%emt 0:00:34]} 18. Nd4 {[%emt 0:00:08]} b5 {[%emt 0:00:15]} 19. Nxe4 {[%emt 0:16:23]} Bxe4 {[%emt 0:01:51]} 20. Bxe4 {[%emt 0:00:07]} Nxe4 {[%emt 0:00:08]} 21. Qxe4 {[%emt 0:03:07]} Qxe4 {[%emt 0:00:30]} 22. Rxe4 {[%emt 0:00:01]} bxc4 {[%emt 0:02:13]} 23. b4 {[%emt 0:00:08]} Nc6 {[%emt 0:00:10]} 24. Ne2 {[%emt 0:01:09]} Nxb4 {[%emt 0:01:08]} 25. Bd2 {[%emt 0:13:26]} Rfd8 {[%emt 0:07:27]} 26. Be1 {[%emt 0:01:26]} Nc2 {[%emt 0:04:06]} 27. Rc1 {[%emt 0:00:08]} Nxe1 {[%emt 0:00:12]} 28. Rxe1 {[%emt 0:00:02]} Rd2 {[%emt 0:00:20]} 29. Rxe7 {[%emt 0:03:56]} Rxa2 {[%emt 0:00:36]} 30. Rb1 {[%emt 0:05:44]} Bf8 {[%emt 0:03:42]} 31. Re4 {[%emt 0:02:26]} f5 {[%emt 0:01:27]} 32. Re5 {[%emt 0:00:54]} Bd6 {[%emt 0:02:47]} 33. Rd5 {[%emt 0:03:56]} Bc5+ {[%emt 0:02:51]} 34. Kf1 {[%emt 0:00:31]} Bf8 {[%emt 0:01:43]} 35. Rb7 {[%emt 0:01:03]} Re8 {[%emt 0:00:23]} 36. Nd4 {[%emt 0:02:55]} Rxh2 {[%emt 0:00:22]} 37. Rdd7 {[%emt 0:01:00]} Re3 {[%emt 0:03:14]} 38. Rb8 {[%emt 0:04:23]} Rd3 {[%emt 0:02:14]} 39. Ke1 {[%emt 0:01:31]} Rxc3 {[%emt 0:00:16]} 40. Ne2 {[%emt 0:00:00]} Rb3 {[%emt 0:00:00]} 41. Rc8 {[%emt 0:06:48]} Rb1+ {[%emt 0:11:15]} 42. Kd2 {[%emt 0:00:50]} c3+ {[%emt 0:01:51]} 43. Ke3 {[%emt 0:02:03]} Re1 {[%emt 0:00:42]} 44. Rdd8 {[%emt 0:01:22]} Rexe2+ {[%emt 0:00:20]} 45. Kd3 {[%emt 0:00:08]} Rd2+ {[%emt 0:00:08]} 46. Kxc3 {[%emt 0:00:13]} Rxd8 {[%emt 0:00:07]} 47. Rxd8 {[%emt 0:00:06]} Ra2 {[%emt 0:00:38]} 0-1